bitfinex/quotes_BTCUSD_20240918
["timestamp","ask_amount","ask_price","bid_price","bid_amount"]
[1726664874487,1.82902567,60041.0,60035.0,0.0043988]
[1726664874720,1.81502567,60041.0,60035.0,0.0043988]
[1726664874938,1.82902567,60041.0,60035.0,0.0043988]
[1726664875435,1.98214131,60041.0,60035.0,0.0043988]
[1726664875896,2.14522689,60041.0,60035.0,0.0043988]
[1726664876390,2.20322689,60041.0,60035.0,0.0043988]
[1726664876629,2.53433189,60041.0,60035.0,0.0043988]
[1726664876877,2.53433189,60041.0,60040.0,0.0040239]
[1726664876878,2.60993189,60041.0,60040.0,0.0040239]
[1726664877111,2.59793189,60041.0,60040.0,0.0040239]
[1726664877352,2.63806916,60041.0,60040.0,0.0040239]
[1726664877612,1.920231,60036.0,60035.0,0.0043988]
[1726664877849,2.35940031,60036.0,60035.0,0.0043988]
[1726664878075,2.35740031,60036.0,60035.0,0.0043988]
[1726664878320,2.35940031,60036.0,60035.0,0.0043988]
[1726664878558,2.35940031,60036.0,60014.0,0.0043988]
[1726664878559,0.833125,60015.0,60014.0,0.0043988]
[1726664878793,1.01917867,60015.0,60014.0,0.0043988]
[1726664878983,1.35242867,60015.0,60014.0,0.0043988]
[1726664879767,1.81567867,60015.0,60014.0,0.0043988]
[1726664880003,1.53842867,60015.0,60014.0,0.0043988]
[1726664880227,1.48242867,60015.0,60014.0,0.0043988]
[1726664880732,0.78592867,60015.0,60014.0,0.0043988]
[1726664880987,0.79992867,60015.0,60014.0,0.0043988]
[1726664881237,1.46642867,60015.0,60014.0,0.0043988]
[1726664881483,1.45242867,60015.0,60014.0,0.0043988]
[1726664881727,1.46642867,60015.0,60014.0,0.0043988]
[1726664882073,1.45242867,60015.0,60014.0,0.0043988]
[1726664882447,1.11917867,60015.0,60014.0,0.0043988]
[1726664882890,0.45267867,60015.0,60014.0,0.0043988]
[1726664883133,0.03,60040.0,60024.0,0.004]
[1726664883384,0.03,60040.0,60025.0,0.004]
[1726664883385,0.16305367,60029.0,60025.0,0.004]
[1726664883611,0.32964267,60028.0,60024.0,0.166598]
[1726664883873,0.166601,60024.0,60020.0,0.004]
[1726664884123,0.166598,60025.0,60021.0,0.166606]
[1726664884349,0.333184,60027.0,60020.0,0.004]
[1726664884584,0.166601,60024.0,60020.0,0.004]
[1726664884819,0.023,60025.0,60020.0,0.004]
[1726664885052,0.17205367,60028.0,60025.0,0.166596]
[1726664885278,0.16305367,60028.0,60027.0,0.166591]
[1726664885505,0.16305367,60028.0,60026.0,0.004]
[1726664885734,0.166591,60027.0,60026.0,0.004]
[1726664885966,0.166591,60027.0,60022.0,0.004]
[1726664885967,0.166605,60023.0,60022.0,0.004]
[1726664886189,0.32965867,60023.0,60022.0,0.004]
[1726664886409,0.16305367,60023.0,60022.0,0.170605]
[1726664886830,0.16305367,60023.0,60022.0,0.503816]
[1726664887277,0.16305367,60023.0,60022.0,0.170605]
[1726664887497,0.16305367,60023.0,60022.0,0.503816]
[1726664888638,0.16305367,60023.0,60022.0,0.004]
[1726664889079,0.16305367,60023.0,60022.0,0.337211]
[1726664889326,0.16305367,60023.0,60022.0,0.837027]
[1726664889816,0.16305367,60023.0,60022.0,0.170605]
[1726664890028,0.16305367,60023.0,60022.0,0.503816]
[1726664890486,0.16305367,60023.0,60022.0,0.170605]
[1726664890715,0.16305367,60023.0,60022.0,0.503816]
[1726664890954,0.16305367,60023.0,60022.0,0.004]
[1726664891199,0.32965567,60023.0,60022.0,0.004]
[1726664891431,0.16305367,60023.0,60022.0,0.170605]
[1726664891658,0.18919258,60023.0,60022.0,0.503816]
[1726664892095,0.18919258,60023.0,60022.0,0.170605]
[1726664892538,0.18919258,60023.0,60022.0,0.503816]
[1726664892764,0.18919258,60023.0,60022.0,0.837027]
[1726664893034,0.333059,60050.0,60033.0,0.004]
[1726664893274,0.49615967,60041.0,60034.0,0.333142]
[1726664893501,0.166572,60034.0,60033.0,0.004]
[1726664893729,0.499758,60029.0,60028.0,0.004]
[1726664893966,0.99598367,60029.0,60028.0,0.004]
[1726664894191,0.99598367,60029.0,60022.0,0.0956]
[1726664894192,0.49622567,60029.0,60027.0,0.004]
[1726664894420,0.49622567,60029.0,60022.0,0.0956]
[1726664894421,0.499782,60026.0,60025.0,0.004]
[1726664894659,0.66283567,60026.0,60025.0,0.004]
[1726664894951,0.16305367,60026.0,60025.0,0.004]
[1726664895837,0.16305367,60026.0,60025.0,0.836985]
[1726664896064,0.16305367,60026.0,60025.0,0.503791]
[1726664896307,0.16405367,60026.0,60025.0,0.171597]
[1726664897230,0.16405367,60026.0,60025.0,0.005]
[1726664897722,0.16405367,60026.0,60025.0,0.171597]
[1726664897956,0.16405367,60026.0,60025.0,0.504791]
[1726664898190,0.16405367,60026.0,60025.0,0.171597]
[1726664898447,0.16405367,60026.0,60025.0,0.005]
[1726664898670,0.16405367,60026.0,60025.0,0.504791]
[1726664898908,0.16405367,60026.0,60025.0,0.837985]
[1726664899141,0.16405367,60026.0,60025.0,0.504791]
[1726664899606,0.16405367,60026.0,60025.0,0.837985]
[1726664899810,0.001,60026.0,60025.0,0.837985]
[1726664900093,0.001,60026.0,60025.0,1.271179]
[1726664900333,0.333067,60048.0,60042.0,0.004]
[1726664900591,0.166539,60046.0,60043.0,0.161546]
[1726664900848,0.166539,60046.0,60039.0,0.098]
[1726664900849,0.16305367,60045.0,60044.0,0.503633]
[1726664901367,0.16305367,60045.0,60044.0,0.004]
[1726664901853,0.66267767,60045.0,60044.0,0.004]
[1726664902314,0.499633,60044.0,60043.0,0.004]
[1726664902555,0.32959767,60044.0,60043.0,0.004]
[1726664902792,0.16305367,60044.0,60043.0,0.004]
[1726664903021,0.32959767,60044.0,60043.0,0.004]
[1726664904379,0.16305367,60044.0,60043.0,0.004]
[1726664904613,0.16305367,60044.0,60043.0,0.503641]
[1726664904829,0.16305367,60044.0,60043.0,0.170547]
[1726664905077,0.16805367,60044.0,60043.0,0.170547]
[1726664905272,0.16305367,60044.0,60043.0,0.170547]
[1726664905718,0.16805367,60044.0,60043.0,0.170547]
[1726664905928,0.16305367,60044.0,60043.0,0.170547]
[1726664906392,0.16305367,60044.0,60043.0,0.171547]
[1726664908015,0.166509,60057.0,60052.0,0.004]
[1726664908249,0.16305367,60055.0,60052.0,0.004]
[1726664908503,0.166517,60054.0,60052.0,0.004]
[1726664908734,0.16305367,60053.0,60052.0,0.004]
[1726664909448,0.16305367,60053.0,60052.0,0.170522]
[1726664909691,0.16305367,60053.0,60052.0,0.171522]
[1726664909924,0.16305367,60053.0,60052.0,0.170522]
[1726664910141,0.16305367,60053.0,60052.0,0.171522]
[1726664910370,0.17205367,60053.0,60052.0,0.171522]
[1726664910608,0.16305367,60053.0,60052.0,0.170522]
[1726664910856,0.16305367,60053.0,60052.0,0.503566]
[1726664911074,0.16305367,60053.0,60052.0,0.170522]
[1726664911700,0.16305367,60053.0,60052.0,0.004]
[1726664912232,0.33357267,60053.0,60052.0,0.004]
[1726664912468,0.16705367,60053.0,60052.0,0.004]
[1726664913445,0.33521667,60053.0,60052.0,0.004]
[1726664913905,0.66825567,60053.0,60052.0,0.004]
[1726664915120,1.02429467,60053.0,60052.0,0.004]
[1726664915638,0.832637,60050.0,60049.0,0.004]
[1726664915889,0.99569067,60050.0,60049.0,0.004]
[1726664916386,0.66263567,60050.0,60049.0,0.004]
[1726664917414,0.16405367,60050.0,60049.0,0.17053]
[1726664919227,0.33058067,60050.0,60049.0,0.004]
[1726664919684,0.66363567,60050.0,60049.0,0.004]
[1726664919942,0.33058067,60050.0,60049.0,0.004]
[1726664920188,0.99669067,60050.0,60049.0,0.004]
[1726664920522,0.99669067,60050.0,60039.0,0.0968]
[1726664920523,0.499615,60046.0,60045.0,0.004]
[1726664920712,0.66266867,60046.0,60045.0,0.004]
[1726664921754,0.32959167,60046.0,60045.0,0.004]
[1726664922729,0.66266867,60046.0,60045.0,0.004]
[1726664923673,0.32959167,60046.0,60045.0,0.004]
[1726664923924,0.66266867,60046.0,60045.0,0.004]
[1726664924154,0.32959167,60046.0,60045.0,0.007]
[1726664924621,0.66266867,60046.0,60045.0,0.007]
[1726664924863,0.32959167,60046.0,60045.0,0.007]
[1726664925097,0.99574567,60046.0,60045.0,0.007]
[1726664925345,0.99574567,60046.0,60045.0,0.003]
[1726664925856,0.66266867,60046.0,60045.0,0.007]
[1726664926087,0.66266867,60046.0,60045.0,0.004]
[1726664926798,0.166572,60034.0,60029.0,0.166585]
[1726664927092,0.66276967,60034.0,60032.0,0.004]
[1726664927389,0.66276967,60034.0,60023.0,0.000822]
[1726664927390,1.49693464,60034.0,60023.0,0.000822]
[1726664927639,1.98621521,60034.0,60023.0,0.000822]
[1726664927873,1.55679424,60034.0,60023.0,0.004822]
[1726664928138,1.74045299,60034.0,60023.0,0.000822]
[1726664928378,2.07359699,60034.0,60023.0,0.000822]
[1726664928648,2.08459699,60034.0,60033.0,0.00120052]
[1726664928873,1.75145299,60034.0,60033.0,0.00120052]
[1726664929127,1.74045299,60034.0,60033.0,0.00020052]
[1726664929367,2.08759699,60034.0,60033.0,0.00120052]
[1726664929601,2.08759699,60034.0,60023.0,0.000822]
[1726664929602,1.3192,60024.0,60023.0,0.000822]
[1726664929838,2.14461242,60024.0,60023.0,0.000822]
[1726664930084,2.71560807,60024.0,60023.0,0.000822]
[1726664930318,2.79775318,60024.0,60023.0,0.000822]
[1726664930793,2.51435989,60024.0,60023.0,0.000822]
[1726664931024,2.30144658,60024.0,60023.0,0.000822]
[1726664931278,2.27652993,60024.0,60023.0,0.000822]
[1726664931528,2.22675753,60024.0,60023.0,0.000822]
[1726664931755,2.23660382,60024.0,60023.0,0.000822]
[1726664931989,2.57923065,60024.0,60023.0,0.000822]
[1726664932225,2.26003065,60024.0,60023.0,0.000822]
[1726664932446,2.49085947,60024.0,60023.0,0.000822]
[1726664932911,2.49085947,60024.0,60014.0,0.000821]
[1726664932912,2.043627,60023.0,60014.0,0.000821]
[1726664933159,2.20468067,60023.0,60014.0,0.000821]
[1726664934091,2.33616058,60023.0,60014.0,0.000821]
[1726664934592,2.20468067,60023.0,60014.0,0.000821]
[1726664934849,1.87147567,60023.0,60014.0,0.000821]
[1726664935589,1.88547567,60023.0,60014.0,0.000821]
[1726664936052,2.21868067,60023.0,60014.0,0.000821]
[1726664936794,1.88547567,60023.0,60014.0,0.000821]
[1726664937268,1.91491924,60023.0,60014.0,0.000821]
[1726664938682,2.24812424,60023.0,60014.0,0.000821]
[1726664938922,1.289375,60015.0,60014.0,0.000821]
[1726664939161,1.45242867,60015.0,60014.0,0.000821]
[1726664939401,1.78567867,60015.0,60014.0,0.000821]
[1726664939644,2.24672867,60015.0,60014.0,0.000821]
[1726664940117,2.01650749,60015.0,60014.0,0.000821]
[1726664940357,2.0426553,60015.0,60014.0,0.000821]
[1726664940590,2.0566553,60015.0,60014.0,0.000821]
[1726664942021,2.05284237,60015.0,60014.0,0.000821]
[1726664942543,2.06684237,60015.0,60014.0,0.000821]
[1726664942780,2.05284237,60015.0,60014.0,0.000821]
[1726664943012,2.06684237,60015.0,60014.0,0.000821]
[1726664943245,1.83601355,60015.0,60014.0,0.000821]
[1726664943477,1.49257648,60015.0,60014.0,0.000821]
[1726664943959,1.47857648,60015.0,60014.0,0.000821]
[1726664944424,1.45242867,60015.0,60014.0,0.000821]
[1726664944905,1.54902867,60015.0,60014.0,0.000821]
[1726664945135,2.07536425,60015.0,60014.0,0.000821]
[1726664945610,2.42261425,60015.0,60014.0,0.000821]
[1726664945848,2.08936425,60015.0,60014.0,0.000821]
[1726664946126,2.07536425,60015.0,60014.0,0.000821]
[1726664946352,2.08936425,60015.0,60014.0,0.000821]
[1726664946577,2.07536425,60015.0,60014.0,0.000821]
[1726664946801,1.91227867,60015.0,60014.0,0.000821]
[1726664947032,1.92627867,60015.0,60014.0,0.000821]
[1726664947256,1.46642867,60015.0,60014.0,0.000821]
[1726664947492,1.44342867,60015.0,60014.0,0.000821]
[1726664948866,1.45242867,60015.0,60014.0,0.000821]
[1726664949104,1.90592524,60015.0,60014.0,0.000821]
[1726664949332,1.91992524,60015.0,60014.0,0.000821]
[1726664949557,1.90592524,60015.0,60014.0,0.000821]
[1726664949981,2.11201082,60015.0,60014.0,0.000821]
[1726664950243,2.17891082,60015.0,60014.0,0.000821]
[1726664951203,2.19291082,60015.0,60014.0,0.000821]
[1726664951438,1.99982524,60015.0,60014.0,0.000821]
[1726664951679,1.90572524,60015.0,60014.0,0.000821]
[1726664951907,1.49257524,60015.0,60014.0,0.000821]
[1726664952842,1.47857524,60015.0,60014.0,0.000821]
[1726664953089,1.49257524,60015.0,60014.0,0.000821]
[1726664953319,1.47857524,60015.0,60014.0,0.000821]
[1726664954225,1.49257524,60015.0,60014.0,0.000821]
[1726664954469,1.47857524,60015.0,60014.0,0.000821]
[1726664956072,1.49257524,60015.0,60014.0,0.000821]
[1726664956787,1.47857524,60015.0,60014.0,0.000821]
[1726664957261,1.15932524,60015.0,60014.0,0.000821]
[1726664957740,1.49257524,60015.0,60014.0,0.000821]
[1726664957970,1.13317867,60015.0,60014.0,0.000821]
[1726664958208,1.46642867,60015.0,60014.0,0.000821]
[1726664959147,1.11917867,60015.0,60014.0,0.000821]
[1726664959605,1.13317867,60015.0,60014.0,0.000821]
[1726664959842,1.11917867,60015.0,60014.0,0.000821]
[1726664960302,1.13117867,60015.0,60014.0,0.000821]
[1726664961264,0.27505367,60015.0,60014.0,0.000821]
[1726664961535,0.17505367,60015.0,60014.0,0.000821]
[1726664962231,0.34167867,60015.0,60014.0,0.000821]
[1726664962456,0.67492867,60015.0,60014.0,0.000821]
[1726664962890,0.70107232,60015.0,60014.0,0.000821]
[1726664963833,0.20119732,60015.0,60014.0,0.000821]
[1726664965021,1.05732232,60015.0,60014.0,0.000821]
[1726664965465,1.36442867,60015.0,60014.0,0.000821]
[1726664966204,1.46442867,60015.0,60014.0,0.000821]
[1726664967418,1.10817867,60015.0,60014.0,0.000821]
[1726664969176,1.46442867,60015.0,60014.0,0.000821]
[1726664974179,1.51421689,60015.0,60014.0,0.000821]
[1726664974426,1.51441586,60015.0,60014.0,0.000821]
[1726664974695,1.872361,60015.0,60014.0,0.000821]
[1726664975164,1.88525511,60015.0,60014.0,0.000821]
[1726664976115,1.45242867,60015.0,60014.0,0.000821]
[1726664976346,1.55200511,60015.0,60014.0,0.000821]
[1726664976587,1.56600511,60015.0,60014.0,0.000821]
[1726664977068,1.55200511,60015.0,60014.0,0.000821]
[1726664977300,1.56600511,60015.0,60014.0,0.000821]
[1726664977776,1.55200511,60015.0,60014.0,0.000821]
[1726664978050,1.56400511,60015.0,60014.0,0.000821]
[1726664978553,1.46442867,60015.0,60014.0,0.000821]
[1726664978786,1.79767867,60015.0,60014.0,0.000821]
[1726664979037,1.95155893,60015.0,60014.0,0.000821]
[1726664979318,2.07602948,60015.0,60014.0,0.000821]
[1726664979544,1.95155893,60015.0,60014.0,0.000821]
[1726664980067,1.61830893,60015.0,60014.0,0.000821]
[1726664980310,1.58944001,60015.0,60014.0,0.000821]
[1726664980603,1.45242867,60015.0,60014.0,0.000821]
[1726664980805,1.46642867,60015.0,60014.0,0.000821]
[1726664981035,1.45242867,60015.0,60014.0,0.000821]
[1726664981541,1.46642867,60015.0,60014.0,0.000821]
[1726664983852,1.49257432,60015.0,60014.0,0.000821]
[1726664984303,1.11017867,60015.0,60014.0,0.000821]
[1726664985480,0.77692867,60015.0,60014.0,0.000821]
[1726664985709,0.77692867,60015.0,60014.0,0.0017106]
[1726664986634,1.62030893,60015.0,60014.0,0.0017106]
[1726664988866,1.64645366,60015.0,60014.0,0.0017106]
[1726664993397,1.65624582,60015.0,60014.0,0.0017106]
[1726664997642,1.78129656,60015.0,60014.0,0.0017106]
[1726664997876,1.7715044,60015.0,60014.0,0.0017106]
[1726665000926,1.77153609,60015.0,60014.0,0.0017106]
[1726665001337,1.28440583,60015.0,60014.0,0.0017106]
[1726665001983,1.1363234,60015.0,60014.0,0.0017106]
[1726665002221,1.21136865,60015.0,60014.0,0.0017106]
[1726665002476,0.85310461,60015.0,60014.0,0.0017106]
[1726665002940,1.21136865,60015.0,60014.0,0.0017106]
[1726665003168,1.4695734,60015.0,60014.0,0.0017106]
[1726665003409,1.61765583,60015.0,60014.0,0.0017106]
[1726665003876,1.4925734,60015.0,60014.0,0.0017106]
[1726665004115,1.9029234,60015.0,60014.0,0.0017106]
[1726665004348,1.87677867,60015.0,60014.0,0.0017106]
[1726665005302,1.86477867,60015.0,60014.0,0.0017106]
[1726665005550,1.87877867,60015.0,60014.0,0.0017106]
[1726665007500,1.87677867,60015.0,60014.0,0.0017106]
[1726665008363,1.87877867,60015.0,60014.0,0.0017106]
[1726665008581,1.87677867,60015.0,60014.0,0.0017106]
[1726665010878,2.21002867,60015.0,60014.0,0.0017106]
[1726665011119,2.40311425,60015.0,60014.0,0.0017106]
[1726665011839,2.38911425,60015.0,60014.0,0.0017106]
[1726665012310,2.40311425,60015.0,60014.0,0.0017106]
[1726665012992,2.43311425,60015.0,60014.0,0.0017106]
[1726665013218,2.44511425,60015.0,60014.0,0.0017106]
[1726665013939,2.41511425,60015.0,60014.0,0.0017106]
[1726665014662,2.42911425,60015.0,60014.0,0.0017106]
[1726665015099,2.40311425,60015.0,60014.0,0.0017106]
[1726665015552,2.40311425,60015.0,60014.0,0.0014106]
[1726665015778,2.40311425,60015.0,60014.0,0.0008106]
[1726665016009,2.06986425,60015.0,60014.0,0.0008106]
[1726665016528,2.06986425,60015.0,60014.0,0.0006106]
[1726665016774,2.40311425,60015.0,60014.0,1.06e-05]
[1726665017019,1.289392,60014.0,60013.0,0.0016106]
[1726665017240,1.45244567,60014.0,60013.0,0.0015106]
[1726665017462,2.09853923,60014.0,60013.0,0.0010106]
[1726665017678,1.93545365,60014.0,60013.0,0.0008106]
[1726665017901,1.93545365,60014.0,60013.0,0.0006106]
[1726665018148,2.26870865,60014.0,60013.0,0.0005106]
[1726665018349,2.28270865,60014.0,60013.0,0.0001106]
[1726665018575,2.28270865,60014.0,60013.0,1.06e-05]
[1726665018813,2.28270865,60014.0,60005.0,0.00149]
[1726665018814,1.62285,60006.0,60005.0,0.0012006]
[1726665019095,1.93978393,60006.0,60005.0,0.0011006]
[1726665019544,2.01464475,60006.0,60005.0,0.0010006]
[1726665019994,2.01464475,60006.0,60005.0,0.0009006]
[1726665020465,2.04079449,60006.0,60005.0,0.0009006]
[1726665020928,2.09071074,60006.0,60005.0,0.0009006]
[1726665021898,2.10471074,60006.0,60005.0,0.0009006]
[1726665022851,2.11450323,60006.0,60005.0,0.0009006]
[1726665023991,2.27758881,60006.0,60005.0,0.0009006]
[1726665024447,2.25143907,60006.0,60005.0,0.0017216]
[1726665024916,2.126662,60006.0,60005.0,0.0017216]
[1726665025135,2.489962,60006.0,60005.0,0.0017216]
[1726665025384,2.489962,60006.0,60000.0,0.0039519]
[1726665025385,0.266663,60001.0,60000.0,0.0039519]
[1726665025635,1.53489767,60001.0,60000.0,0.0039519]
[1726665025879,2.20155167,60001.0,60000.0,0.0039519]
[1726665026111,2.01780888,60001.0,60000.0,0.0039519]
[1726665026340,1.86822467,60001.0,60000.0,0.0039519]
[1726665026573,2.02210493,60001.0,60000.0,0.0039519]
[1726665026824,2.03610493,60001.0,60000.0,0.0039519]
[1726665028466,2.51851751,60001.0,60000.0,0.0039519]
[1726665028686,2.53251751,60001.0,60000.0,0.0039519]
[1726665029145,2.51851751,60001.0,60000.0,0.0039519]
[1726665029646,2.53251751,60001.0,60000.0,0.0039519]
[1726665030578,2.65713482,60001.0,60000.0,0.0039519]
[1726665030810,2.53251751,60001.0,60000.0,0.0039519]
[1726665031040,2.65601751,60001.0,60000.0,0.0039519]
[1726665031293,2.71201751,60001.0,60000.0,0.0039519]
[1726665031530,2.7205619,60001.0,60000.0,0.0039519]
[1726665032012,2.7345619,60001.0,60000.0,0.0039519]
[1726665032256,2.7205619,60001.0,60000.0,0.0039519]
[1726665032716,2.7345619,60001.0,60000.0,0.0039519]
[1726665032948,2.7205619,60001.0,60000.0,0.0039519]
[1726665033448,2.7345619,60001.0,60000.0,0.0039519]
[1726665033921,2.7345619,60001.0,59997.0,0.0018]
[1726665033922,1.623048,59998.0,59997.0,0.0018]
[1726665034178,1.623048,59998.0,59982.0,0.0047729]
[1726665034179,0.653041,59995.0,59982.0,0.0047729]
[1726665034418,1.653223,59991.0,59982.0,0.0047729]
[1726665034671,1.81627667,59991.0,59982.0,0.0047729]
[1726665034911,2.14965967,59991.0,59982.0,0.0047729]
[1726665035150,2.33395279,59991.0,59982.0,0.0047729]
[1726665035383,2.45841207,59991.0,59982.0,0.0047729]
[1726665035626,2.61229233,59991.0,59982.0,0.0047729]
[1726665036364,0.03,59983.0,59982.0,0.0047729]
[1726665036606,2.37800167,59983.0,59982.0,0.0047729]
[1726665036849,2.66175648,59983.0,59982.0,0.0047729]
[1726665037112,1.986942,59980.0,59967.0,0.0032029]
[1726665037363,2.22463755,59980.0,59967.0,0.0032029]
[1726665037664,2.24575555,59980.0,59967.0,0.0032029]
[1726665037868,2.03619087,59980.0,59968.0,0.004]
[1726665038103,1.45122567,59980.0,59971.0,0.004]
[1726665038570,1.60510593,59980.0,59971.0,0.004]
[1726665039272,1.61910593,59980.0,59971.0,0.004]
[1726665039499,1.64210593,59980.0,59971.0,0.004]
[1726665040168,1.72741409,59980.0,59971.0,0.004]
[1726665040619,1.82160593,59980.0,59971.0,0.004]
[1726665040867,1.82160593,59980.0,59967.0,0.0032029]
[1726665040868,0.856777,59968.0,59967.0,0.0032029]
[1726665041137,1.37420274,59968.0,59967.0,0.0032029]
[1726665041586,1.40036484,59968.0,59967.0,0.0032029]
[1726665042255,1.41336484,59968.0,59967.0,0.0032029]
[1726665042704,1.39036484,59968.0,59967.0,0.0032029]
[1726665042930,1.05685384,59968.0,59967.0,0.0072029]
[1726665048746,1.05685384,59968.0,59967.0,0.0080239]
[1726665049019,1.03069174,59968.0,59967.0,0.0080239]
[1726665053214,1.05685418,59968.0,59967.0,0.0080239]
[1726665054837,1.39036518,59968.0,59967.0,0.0080239]
[1726665055057,1.05685418,59968.0,59967.0,0.0080239]
[1726665056004,1.39036518,59968.0,59967.0,0.0080239]
[1726665056444,1.05685418,59968.0,59967.0,0.0080239]
[1726665056666,1.39036518,59968.0,59967.0,0.0080239]
[1726665057839,1.36420274,59968.0,59967.0,0.0080239]
[1726665058295,1.39733889,59968.0,59967.0,0.0080239]
[1726665058516,1.38720274,59968.0,59967.0,0.0080239]
[1726665059421,1.38720274,59968.0,59967.0,0.0040239]
[1726665059873,1.82071374,59968.0,59967.0,0.0040239]
[1726665060354,1.91321374,59968.0,59967.0,0.0040239]
[1726665060817,1.90021374,59968.0,59967.0,0.0040239]
[1726665061519,1.91421374,59968.0,59967.0,0.0040239]
[1726665061766,2.33062474,59968.0,59967.0,0.0040239]
[1726665062000,2.16019932,59968.0,59967.0,0.0040239]
[1726665062443,2.49371032,59968.0,59967.0,0.0040239]
[1726665062660,2.16019932,59968.0,59967.0,0.0040239]
[1726665063586,2.14619932,59968.0,59967.0,0.0040239]
[1726665064029,2.16019932,59968.0,59967.0,0.0040239]
[1726665064536,2.16019932,59968.0,59953.0,0.001282]
[1726665064537,1.290561,59954.0,59953.0,0.001282]
[1726665064784,1.78720367,59954.0,59953.0,0.001282]
[1726665065027,1.80772645,59954.0,59953.0,0.001282]
[1726665065743,1.96160671,59954.0,59953.0,0.001282]
[1726665067114,1.97560671,59954.0,59953.0,0.001282]
[1726665067591,1.35113745,59954.0,59953.0,0.001282]
[1726665067820,0.03452278,59954.0,59953.0,0.005282]
[1726665068093,0.03452278,59954.0,59953.0,0.18815748]
[1726665068094,0.53490578,59954.0,59953.0,0.18815748]
[1726665068342,0.53490578,59954.0,59953.0,0.184822]
[1726665068343,0.86849478,59954.0,59953.0,0.184822]
[1726665068559,1.36513745,59954.0,59953.0,0.184822]
[1726665068783,1.36513745,59954.0,59953.0,0.004822]
[1726665068784,1.35113745,59954.0,59953.0,0.004822]
[1726665069244,1.35113745,59954.0,59953.0,0.000822]
[1726665069477,1.50501771,59954.0,59953.0,0.000822]
[1726665069724,1.35113745,59954.0,59953.0,0.004822]
[1726665069953,1.35113745,59954.0,59953.0,0.000822]
[1726665070416,1.97560671,59954.0,59953.0,0.000822]
[1726665070678,1.96160671,59954.0,59953.0,0.000822]
[1726665071610,1.97460671,59954.0,59953.0,0.000822]
[1726665071858,1.96160671,59954.0,59953.0,0.000822]
[1726665072329,1.97560671,59954.0,59953.0,0.000822]
[1726665073706,1.96160671,59954.0,59953.0,0.000822]
[1726665074146,1.97560671,59954.0,59953.0,0.000822]
[1726665074410,1.95260671,59954.0,59953.0,0.000822]
[1726665074632,1.46513745,59954.0,59953.0,0.000822]
[1726665074861,0.03452278,59954.0,59953.0,0.004822]
[1726665075097,0.014,59954.0,59953.0,0.004822]
[1726665075334,0.014,59954.0,59953.0,0.597513]
[1726665075548,0.014,59954.0,59953.0,0.263919]
[1726665075776,0.014,59954.0,59953.0,0.597513]
[1726665076239,0.014,59954.0,59953.0,0.931107]
[1726665076697,0.014,59954.0,59953.0,0.979647]
[1726665076927,0.333554,59961.0,59953.0,0.145662]
[1726665077141,0.333554,59961.0,59960.0,0.004]
[1726665077372,0.833883,59961.0,59960.0,0.004]
[1726665077820,1.167437,59961.0,59960.0,0.004]
[1726665078289,1.33049067,59961.0,59960.0,0.004]
[1726665078754,0.69454925,59961.0,59960.0,0.004]
[1726665078978,0.68954925,59961.0,59960.0,0.004]
[1726665079191,1.02309925,59961.0,59960.0,0.004]
[1726665079665,1.04017967,59961.0,59960.0,0.004]
[1726665080155,1.04017967,59961.0,59954.0,0.004]
[1726665080156,0.833957,59955.0,59954.0,0.004]
[1726665080387,0.66342767,59955.0,59954.0,0.004]
[1726665080867,0.70667599,59955.0,59954.0,0.004]
[1726665081312,1.04026399,59955.0,59954.0,0.004]
[1726665082441,1.05126399,59955.0,59954.0,0.004]
[1726665082894,0.71767599,59955.0,59954.0,0.004]
[1726665083619,1.05125899,59955.0,59954.0,0.004]
[1726665085249,0.05424832,59955.0,59954.0,0.170794]
[1726665085479,0.011,59955.0,59954.0,0.976434]
[1726665085714,0.011,59955.0,59954.0,1.310023]
[1726665087336,0.333513,59968.0,59964.0,0.004]
[1726665087578,0.333513,59968.0,59960.0,0.333553]
[1726665087579,0.500284,59966.0,59965.0,0.004]
[1726665087807,0.66333767,59966.0,59965.0,0.004]
[1726665088736,0.333494,59972.0,59961.0,0.166774]
[1726665088737,0.166751,59970.0,59969.0,0.004]
[1726665089005,0.001644,59979.0,59974.0,0.004]
[1726665089244,0.168369,59979.0,59978.0,0.004]
[1726665090218,0.66487267,59979.0,59978.0,0.004]
[1726665091910,0.33842267,59979.0,59978.0,0.004]
[1726665092156,0.67187267,59979.0,59978.0,0.004]
[1726665093323,0.33842267,59979.0,59978.0,0.004]
[1726665094111,0.67187267,59979.0,59978.0,0.004]
[1726665094554,1.02257449,59979.0,59978.0,0.004]
[1726665094972,0.333511,59968.0,59967.0,0.004]
[1726665095229,0.333511,59968.0,59953.0,0.25101173]
[1726665095230,0.333533,59964.0,59963.0,0.004]
[1726665095465,1.33041867,59964.0,59963.0,0.004]
[1726665095696,1.34767049,59964.0,59963.0,0.004]
[1726665098127,1.35767049,59964.0,59963.0,0.004]
[1726665098663,0.833887,59960.0,59959.0,0.004]
[1726665098891,0.99694067,59960.0,59959.0,0.004]
[1726665099374,1.01404646,59960.0,59959.0,0.004]
[1726665099610,1.34760146,59960.0,59959.0,0.004]
[1726665101824,1.35660146,59960.0,59959.0,0.004]
[1726665102549,1.35660146,59960.0,59954.0,0.000822]
[1726665102550,0.833957,59955.0,59954.0,0.004822]
[1726665102836,0.99701067,59955.0,59954.0,0.004822]
[1726665103054,1.33059367,59955.0,59954.0,0.004822]
[1726665103283,1.34769946,59955.0,59954.0,0.004822]
[1726665103514,1.34769946,59955.0,59954.0,0.000822]
[1726665103515,1.70428246,59955.0,59954.0,0.000822]
[1726665103765,1.98433288,59955.0,59954.0,0.000822]
[1726665104256,1.96216272,59955.0,59954.0,0.000822]
[1726665104488,1.95816272,59955.0,59954.0,0.000822]
[1726665104727,1.62457972,59955.0,59954.0,0.000822]
[1726665104980,1.63857972,59955.0,59954.0,0.000822]
[1726665105680,1.62457972,59955.0,59954.0,0.000822]
[1726665107375,1.66475135,59955.0,59954.0,0.000822]
[1726665107601,1.63857972,59955.0,59954.0,0.000822]
[1726665110310,1.66475146,59955.0,59954.0,0.000822]
[1726665120015,1.99833446,59955.0,59954.0,0.000822]
[1726665120245,1.66475146,59955.0,59954.0,0.000822]
[1726665121930,1.3878712,59955.0,59954.0,0.004822]